bitfinex/quotes_SOLUSD_20251103
["timestamp","ask_amount","ask_price","bid_price","bid_amount"]
[1762195110573,12.18,169.35,169.29,20.67458207]
[1762195110772,12.18,169.35,169.3,0.72]
[1762195111186,12.18,169.35,169.31,5.90632567]
[1762195111480,18.08496155,169.35,169.31,5.90632567]
[1762195111687,25.55075195,169.35,169.31,5.90632567]
[1762195111884,25.55075195,169.35,169.31,6.62632567]
[1762195112077,3.92820834,169.34,169.31,6.62632567]
[1762195112791,3.92820834,169.34,169.28,20.592]
[1762195112992,7.4657904,169.32,169.27,0.71]
[1762195113197,13.37246494,169.3,169.24,0.71]
[1762195113369,7.4657904,169.27,169.22,0.71]
[1762195113730,19.6457904,169.26,169.22,0.71]
[1762195113994,7.4657904,169.24,169.19,6.62043887]
[1762195114189,7.4657904,169.24,169.2,0.71]
[1762195114800,7.4657904,169.24,169.17,5.91121357]
[1762195115002,7.4657904,169.19,169.15,0.1]
[1762195115305,19.6457904,169.18,169.15,0.1]
[1762195115476,25.55673796,169.18,169.15,0.1]
[1762195115789,7.4657904,169.17,169.15,0.1]
[1762195116178,25.55673796,169.18,169.15,0.1]
[1762195116915,12.18,169.18,169.15,0.1]
[1762195117810,20.592,169.2,169.15,0.1]
[1762195118009,12.2,169.19,169.15,6.72187784]
[1762195118212,12.2,169.18,169.15,6.72187784]
[1762195118521,12.2,169.17,169.16,0.71]
[1762195119210,12.2,169.17,169.15,6.01187784]
[1762195119578,12.2,169.17,169.16,0.71]
[1762195120181,9.78882769,169.24,169.16,0.71]
[1762195120377,42.6,169.24,169.16,0.71]
[1762195120619,28.0577904,169.25,169.16,0.71]
[1762195120916,20.592,169.25,169.16,0.71]
[1762195121091,12.2,169.24,169.16,0.71]
[1762195121488,25.57462928,169.24,169.17,5.91121357]
[1762195121690,7.4657904,169.21,169.16,0.71]
[1762195121889,12.2,169.2,169.16,6.62149853]
[1762195122407,12.2,169.2,169.16,5.91149853]
[1762195122702,19.6657904,169.2,169.16,5.91149853]
[1762195123609,12.2,169.2,169.16,6.62149853]
[1762195125316,7.4657904,169.19,169.15,0.1]
[1762195125615,25.57605588,169.2,169.15,0.1]
[1762195125818,7.4657904,169.19,169.15,6.01183833]
[1762195126117,12.18,169.18,169.15,6.01183833]
[1762195126315,7.4657904,169.19,169.15,6.72183833]
[1762195126525,12.18,169.17,169.15,6.72183833]
[1762195127206,12.18,169.17,169.15,0.1]
[1762195127390,19.6457904,169.17,169.15,0.1]
[1762195127906,12.18,169.17,169.15,0.1]
[1762195128104,19.6457904,169.17,169.15,0.1]
[1762195128297,12.18,169.16,169.15,0.1]
[1762195128703,19.6457904,169.16,169.15,0.1]
[1762195129091,12.18,169.16,169.15,0.1]
[1762195129709,20.592,169.2,169.15,6.72168038]
[1762195129912,7.4657904,169.18,169.15,0.1]
[1762195130907,12.18,169.17,169.15,0.1]
[1762195135020,19.6457904,169.17,169.15,0.1]
[1762195135197,12.18,169.17,169.15,6.01187974]
[1762195135593,12.18,169.17,169.15,0.1]
[1762195136631,25.55713393,169.17,169.15,0.1]
[1762195136837,7.4657904,169.16,169.15,0.1]
[1762195137216,19.6457904,169.17,169.15,0.1]
[1762195138049,5.91090917,169.18,169.15,0.1]
[1762195138050,12.16,169.16,169.15,0.1]
[1762195138239,7.4657904,169.19,169.15,6.01181143]
[1762195138419,16.04299995,169.18,169.16,6.62153854]
[1762195138607,12.16,169.18,169.16,6.62153854]
[1762195139349,3.88371213,169.17,169.16,6.62153854]
[1762195139646,3.88371213,169.17,169.16,0.71]
[1762195140320,3.88371213,169.17,169.16,6.62156301]
[1762195140648,12.16,169.17,169.16,6.62156301]
[1762195141353,19.6257904,169.17,169.15,0.1]
[1762195141646,11.35095355,169.16,169.15,0.1]
[1762195142717,17.26251656,169.16,169.15,0.1]
[1762195142921,11.35095355,169.16,169.15,0.1]
[1762195143651,23.51095355,169.16,169.15,0.1]
[1762195144442,29.42251656,169.16,169.15,0.1]
[1762195145046,23.51095355,169.16,169.15,0.1]
[1762195145747,3.88516315,169.16,169.15,6.6819125]
[1762195145934,16.04516315,169.16,169.15,6.6819125]
[1762195148049,12.16,169.16,169.15,6.6819125]
[1762195149357,12.16,169.16,169.15,0.77]
[1762195149728,12.16,169.16,169.15,21.46169375]
[1762195150150,16.06536562,169.16,169.15,21.46169375]
[1762195150355,12.16,169.16,169.15,21.46169375]
[1762195150737,7.4657904,169.2,169.15,21.46169375]
[1762195150936,16.06632167,169.19,169.15,21.46169375]
[1762195151138,3.90632167,169.18,169.16,0.67]
[1762195151457,24.49832167,169.17,169.15,0.1]
[1762195151638,16.06632167,169.16,169.15,0.1]
[1762195154756,3.90632167,169.16,169.15,6.6819125]
[1762195154940,16.06632167,169.16,169.15,6.6819125]
[1762195155256,3.90632167,169.16,169.15,6.6819125]
[1762195157942,3.90632167,169.16,169.15,0.1]
[1762195158269,16.25467262,169.16,169.15,0.1]
[1762195159662,8.78888222,169.16,169.15,6.0119125]
[1762195159863,16.06632167,169.16,169.15,6.6819125]
[1762195160443,3.18632167,169.16,169.15,6.6819125]
[1762195161359,12.16,169.19,169.15,21.46169375]
[1762195161670,5.59256055,169.22,169.16,0.67]
[1762195161970,12.16,169.21,169.17,5.91121357]
[1762195162585,39.55955106,169.23,169.18,0.67]
[1762195162742,17.04256055,169.24,169.18,0.67]
[1762195162942,12.16,169.23,169.18,0.67]
[1762195163168,12.16,169.24,169.18,0.67]
[1762195163369,7.4657904,169.23,169.18,0.67]
[1762195163541,7.4657904,169.21,169.15,0.1]
[1762195163742,7.4657904,169.19,169.16,6.58144992]
[1762195163954,7.4657904,169.18,169.15,6.68182]
[1762195164154,12.18,169.17,169.15,6.68182]
[1762195164353,12.18,169.17,169.16,0.67]
[1762195165667,25.44292496,169.21,169.16,0.67]
[1762195165864,4.88256055,169.24,169.16,10.45882769]
[1762195166063,12.18,169.23,169.17,21.3592475]
[1762195166377,4.85092496,169.22,169.17,6.58121357]
[1762195166889,4.85092496,169.22,169.18,0.67]
[1762195167260,17.74092496,169.23,169.18,0.67]
[1762195167977,17.74092496,169.23,169.19,5.9105148]
[1762195168174,17.03092496,169.23,169.19,5.9105148]
[1762195168366,12.18,169.23,169.2,0.7]
[1762195168692,16.29076212,169.29,169.2,0.7]
[1762195168899,12.16,169.28,169.2,0.7]
[1762195169059,4.85092496,169.27,169.2,0.7]
[1762195169259,5.50092496,169.27,169.2,0.7]
[1762195169661,5.50092496,169.27,169.21,5.9098162]
[1762195169973,11.40871646,169.27,169.21,5.9098162]
[1762195170175,4.85092496,169.26,169.21,5.9098162]
[1762195170373,0.65,169.27,169.21,21.38435671]
[1762195170580,0.65,169.27,169.22,0.7]
[1762195170777,5.50092496,169.27,169.22,0.7]
[1762195171684,5.50092496,169.27,169.23,5.90911776]
[1762195171883,12.16,169.28,169.23,20.68191218]
[1762195172091,12.18,169.27,169.24,0.7]
[1762195172686,4.85092496,169.31,169.24,0.7]
[1762195172888,26.85272328,169.3,169.25,5.90841949]
[1762195173186,8.785867,169.29,169.25,6.62841949]
[1762195173485,8.785867,169.28,169.24,5.90873568]
[1762195173666,8.785867,169.27,169.24,5.90873568]
[1762195173860,12.16,169.26,169.24,6.62873568]
[1762195174057,12.16,169.26,169.25,0.72]
[1762195174673,12.16,169.26,169.24,5.90873568]
[1762195175183,12.16,169.26,169.23,5.90910454]
[1762195175692,12.16,169.26,169.23,6.62910454]
[1762195175862,12.16,169.26,169.23,0.72]
[1762195176263,12.16,169.26,169.23,6.62905798]
[1762195176867,17.01092496,169.26,169.22,5.90942237]
[1762195177293,17.01092496,169.26,169.23,0.72]
[1762195177483,17.01092496,169.26,169.2,20.592]
[1762195177688,4.85092496,169.25,169.21,0.72]
[1762195177997,12.16,169.26,169.21,0.72]
[1762195178165,25.44292496,169.29,169.21,0.72]
[1762195178366,16.08795794,169.28,169.21,0.72]
[1762195178573,12.16,169.28,169.21,0.72]
[1762195179009,17.01092496,169.28,169.22,20.68313437]
[1762195179472,8.77921656,169.27,169.22,6.62946696]
[1762195179681,4.85092496,169.25,169.21,6.62973665]
[1762195179876,17.01092496,169.25,169.21,5.90973665]
[1762195180074,17.01092496,169.25,169.22,0.72]
[1762195180292,12.16,169.25,169.22,0.72]
[1762195180968,12.16,169.25,169.23,5.90911776]
[1762195181396,12.16,169.25,169.23,6.62911776]
[1762195181794,12.16,169.25,169.21,6.62948743]
[1762195182191,12.16,169.25,169.21,5.90948743]
[1762195182390,12.16,169.25,169.22,0.72]
[1762195183190,12.16,169.25,169.22,6.62934852]
[1762195184589,12.16,169.25,169.23,0.72]
[1762195184991,12.16,169.25,169.22,5.90934852]
[1762195185188,12.16,169.25,169.22,6.62934852]
[1762195186470,12.16,169.25,169.18,20.68802458]
[1762195186676,12.16,169.25,169.23,0.72]
[1762195187090,12.86,169.25,169.2,0.72]
[1762195187607,14.72105114,169.25,169.2,0.72]
[1762195187823,2.56105114,169.24,169.18,5.91086416]
[1762195188104,1.86105114,169.19,169.15,0.82]
[1762195188318,20.592,169.2,169.15,0.82]
[1762195188319,12.14,169.18,169.15,0.82]
[1762195188484,12.14,169.18,169.15,21.51157221]
[1762195188876,12.14,169.18,169.16,0.72]
[1762195190207,12.14,169.18,169.17,5.91121357]
[1762195190602,12.14,169.18,169.16,0.72]
[1762195191105,14.00105114,169.18,169.15,0.1]
[1762195191309,1.86105114,169.17,169.15,0.1]
[1762195191699,12.14,169.18,169.15,0.82]
[1762195192016,12.14,169.18,169.15,6.7318503]
[1762195192209,12.14,169.18,169.15,0.82]
[1762195192810,12.14,169.18,169.15,6.73187747]
[1762195194109,18.05090263,169.18,169.15,0.1]
[1762195194418,2.56105114,169.17,169.15,0.1]
[1762195194599,22.45305114,169.16,169.15,0.1]
[1762195194906,27.08161613,169.16,169.15,0.1]
[1762195195083,32.29317914,169.16,169.15,0.1]
[1762195196424,26.38161613,169.16,169.15,0.1]
[1762195197428,32.29317914,169.16,169.15,0.1]
[1762195197633,29.06461415,169.16,169.15,0.1]
[1762195198487,20.592,169.16,169.15,0.1]
[1762195198688,32.752,169.16,169.15,0.1]
[1762195198908,33.452,169.16,169.15,0.1]
[1762195199305,32.752,169.16,169.15,0.1]
[1762195199618,34.61305114,169.16,169.15,0.1]
[1762195200010,41.22461415,169.16,169.15,0.1]
[1762195200216,40.52461415,169.16,169.15,0.1]
[1762195200411,45.15315763,169.16,169.15,0.1]
[1762195200615,45.2953192,169.16,169.15,0.1]
[1762195200925,55.08414689,169.16,169.15,0.1]
[1762195203408,24.52054348,169.16,169.15,0.1]
[1762195203623,12.16,169.16,169.15,0.1]
[1762195204727,1.86105114,169.2,169.15,0.77]
[1762195204963,3.92909851,169.2,169.15,21.46169375]
[1762195205256,4.91061291,169.25,169.16,0.67]
[1762195205257,12.16,169.22,169.16,0.67]
[1762195205917,1.86105114,169.28,169.17,9.78882769]
[1762195206122,16.09296269,169.27,169.17,9.78882769]
[1762195206420,5.79401383,169.26,169.19,20.68680181]
[1762195206625,19.68256934,169.3,169.19,20.68680181]
[1762195206626,3.93296269,169.25,169.19,20.68680181]
[1762195206829,11.02,169.25,169.2,0.67]
[1762195207221,14.95320352,169.25,169.2,0.67]
[1762195207426,11.02,169.25,169.2,0.67]
[1762195208126,11.02,169.25,169.2,6.57990953]
[1762195208442,14.95248984,169.25,169.2,6.57990953]
[1762195208637,11.02,169.25,169.21,0.67]
[1762195208838,0.71,169.24,169.16,26.93825337]
[1762195209044,1.86105114,169.21,169.17,0.67]
[1762195209345,12.16,169.2,169.17,0.67]
[1762195210024,12.16,169.2,169.18,5.91086416]
[1762195210224,12.16,169.2,169.19,0.67]
[1762195211244,12.16,169.2,169.16,20.69047055]
[1762195211543,12.16,169.2,169.17,0.67]
[1762195212240,32.732,169.24,169.17,10.45882769]
[1762195212450,32.732,169.24,169.18,0.67]
[1762195213150,12.14,169.24,169.19,5.9105148]
[1762195213523,12.14,169.24,169.2,0.67]
[1762195213725,20.592,169.27,169.2,0.67]
[1762195214017,16.06970553,169.26,169.2,0.67]
[1762195214241,14.00105114,169.26,169.2,0.67]
[1762195215050,12.14,169.26,169.21,5.9098162]
[1762195215254,20.61919859,169.26,169.2,6.58005904]
[1762195215449,3.92921106,169.25,169.2,6.58005904]
[1762195215658,3.92921106,169.25,169.21,0.67]
[1762195216038,18.04814745,169.26,169.21,0.67]
[1762195216343,18.04814745,169.26,169.21,6.57963542]
[1762195216726,20.61919859,169.26,169.21,0.67]
[1762195217136,1.86105114,169.22,169.15,0.77]
[1762195217452,1.86105114,169.17,169.15,0.1]
[1762195217629,14.00105114,169.17,169.15,0.1]
[1762195217831,2.57105114,169.16,169.15,0.1]
[1762195218134,12.14,169.17,169.15,0.1]
[1762195218135,12.85,169.17,169.15,0.1]
[1762195218453,19.91237054,169.17,169.15,0.1]
[1762195218651,5.78753706,169.16,169.15,0.1]
[1762195220441,14.69038132,169.16,169.15,0.1]
[1762195222360,15.40038132,169.16,169.15,0.1]
[1762195222683,14.69038132,169.16,169.15,0.1]
[1762195222850,12.14,169.16,169.15,0.1]
[1762195223026,41.51081831,169.16,169.15,0.1]
[1762195224350,36.65848592,169.16,169.15,0.1]
[1762195224657,41.51081831,169.16,169.15,0.1]
[1762195224832,29.37081831,169.16,169.15,0.1]
[1762195225032,12.14,169.16,169.15,0.77]
[1762195225251,12.14,169.16,169.15,0.1]
[1762195227059,12.14,169.16,169.15,0.77]
[1762195227255,12.14,169.16,169.15,0.1]
[1762195227848,12.14,169.16,169.15,0.79]
[1762195228067,12.14,169.16,169.15,0.1]
[1762195228242,28.07730095,169.17,169.15,0.1]
[1762195228448,12.16,169.16,169.15,0.1]
[1762195229068,12.16,169.16,169.15,6.0119125]
[1762195229266,16.08708683,169.16,169.15,6.0119125]
[1762195229566,12.16,169.16,169.15,6.7019125]
[1762195230876,12.16,169.16,169.15,0.79]
[1762195231180,12.16,169.16,169.15,0.1]
[1762195231353,23.57251447,169.16,169.15,0.1]
[1762195231754,7.48530095,169.19,169.15,6.7019125]
[1762195231947,16.08693484,169.18,169.15,6.7019125]
[1762195232267,3.92693484,169.17,169.16,0.69]
[1762195232965,3.92693484,169.17,169.16,6.60156301]
[1762195233347,12.16,169.18,169.16,0.69]
[1762195233743,12.16,169.18,169.16,6.60154005]
[1762195234757,12.16,169.18,169.17,0.71]
[1762195234960,12.16,169.18,169.16,6.62154005]
[1762195235166,16.08477495,169.18,169.16,6.62154005]
[1762195235466,12.16,169.18,169.16,6.62154005]
[1762195236467,7.48530095,169.17,169.15,0.1]
[1762195236674,23.54991888,169.16,169.15,0.1]
[1762195237347,16.06461793,169.16,169.15,0.81]
[1762195237651,12.14,169.16,169.15,6.7219125]
[1762195238051,12.14,169.16,169.15,0.81]
[1762195238452,7.48530095,169.18,169.15,6.72186156]
[1762195238678,12.14,169.17,169.15,6.72186156]
[1762195239363,12.14,169.17,169.15,0.81]
[1762195240274,12.14,169.16,169.15,0.81]
[1762195240481,12.14,169.16,169.15,6.72190671]
[1762195241776,4.90783956,169.27,169.16,9.78882769]
[1762195241965,3.92931548,169.26,169.18,9.78882769]
[1762195242285,12.14,169.26,169.18,9.78882769]
[1762195242467,12.14,169.26,169.19,0.71]
[1762195243563,12.14,169.26,169.2,5.91016548]
[1762195243564,3.9269543,169.25,169.2,5.91016548]
[1762195243961,12.14,169.26,169.21,0.71]
[1762195245779,12.14,169.26,169.22,5.90946696]
[1762195246174,12.14,169.26,169.23,0.71]
[1762195247180,3.61041524,169.25,169.2,0.71]
[1762195247483,2.91041524,169.22,169.19,5.9105148]
[1762195247669,15.05041524,169.22,169.19,6.6205148]
[1762195247863,15.05041524,169.22,169.18,5.91080007]
[1762195248081,15.05041524,169.22,169.18,6.62080007]
[1762195248279,15.05041524,169.22,169.18,0.71]
[1762195248280,2.91041524,169.21,169.18,0.71]
[1762195248478,6.83084776,169.21,169.17,6.62093786]
[1762195248670,2.91041524,169.21,169.17,6.62093786]
[1762195248866,2.91041524,169.21,169.18,0.71]
[1762195249174,6.83066978,169.21,169.18,0.71]
[1762195249569,6.83066978,169.21,169.18,6.62082519]
[1762195250257,2.91041524,169.2,169.16,6.62156301]
[1762195250479,12.14,169.19,169.16,6.62156301]
[1762195250689,12.14,169.19,169.16,5.91156301]
[1762195250855,12.14,169.19,169.17,0.71]
[1762195251785,12.14,169.21,169.18,5.91086416]
[1762195251977,15.05041524,169.21,169.18,5.91086416]
[1762195252172,12.14,169.21,169.18,5.91086416]
[1762195252693,12.14,169.21,169.18,6.62086416]
[1762195253772,15.05041524,169.21,169.18,0.71]
[1762195254175,15.05041524,169.21,169.18,6.62085502]
[1762195254483,15.05041524,169.21,169.18,0.71]
[1762195255871,20.96026858,169.21,169.17,5.91109208]
[1762195256075,6.83850857,169.2,169.17,6.62109208]
[1762195256483,3.92809333,169.2,169.17,6.62109208]
[1762195256888,3.92809333,169.2,169.17,5.91109208]
[1762195257079,6.83850857,169.2,169.17,6.62109208]
[1762195257590,6.83850857,169.2,169.17,0.71]
[1762195258887,2.91041524,169.2,169.17,0.71]
[1762195259083,3.93194124,169.19,169.17,0.71]
[1762195259481,2.91041524,169.2,169.15,0.1]
[1762195259482,18.98235648,169.18,169.15,6.72178634]
[1762195259683,15.05041524,169.18,169.15,6.72178634]
[1762195260174,15.05041524,169.18,169.16,0.71]
[1762195260575,15.05041524,169.18,169.15,0.1]
[1762195260784,15.05041524,169.18,169.15,0.81]
[1762195260985,15.05041524,169.18,169.15,6.72182203]
[1762195261168,12.14,169.18,169.15,6.72182203]
[1762195261368,12.14,169.18,169.16,0.71]
[1762195261886,15.05041524,169.18,169.15,0.1]
[1762195262096,2.91041524,169.16,169.15,0.1]
[1762195262493,6.84354857,169.16,169.15,0.1]
[1762195265177,3.93313333,169.16,169.15,0.1]
[1762195265573,2.91041524,169.16,169.15,0.1]
[1762195265897,30.08397825,169.16,169.15,0.1]
[1762195266081,30.22613982,169.16,169.15,0.1]
[1762195267740,40.01496751,169.16,169.15,0.1]
[1762195269310,39.3460161,169.13,169.12,0.1]
[1762195269511,54.39643134,169.13,169.12,0.1]
[1762195269810,55.06643134,169.13,169.12,0.1]
[1762195270488,55.06643134,169.13,169.12,1e-08]
[1762195270688,55.06643134,169.13,169.07,0.1]
[1762195270689,0.14216157,169.07,168.98,0.1]
[1762195270892,2.91041524,169.04,168.99,0.79]
[1762195271092,2.91041524,169.01,168.99,0.79]
[1762195271295,12.14,169.0,168.99,0.79]
[1762195271533,23.50241524,169.03,168.99,6.70746086]
[1762195271732,12.14,169.02,168.99,6.70746086]
[1762195272038,12.14,169.02,169.0,0.69]
[1762195272328,2.91041524,169.04,169.0,0.69]
[1762195272517,15.05041524,169.03,169.0,0.69]
[1762195272712,2.91041524,169.01,168.99,0.1]
[1762195272918,12.14,169.0,168.99,0.79]
[1762195273427,35.7604744,169.0,168.93,0.69]
[1762195273633,2.91041524,168.95,168.9,6.02063762]
[1762195273820,15.05041524,168.94,168.91,0.69]
[1762195274131,15.05041524,168.93,168.91,0.69]
[1762195274321,12.14,168.92,168.91,0.69]
[1762195274634,12.14,168.92,168.91,6.61031259]
[1762195274930,12.14,168.97,168.91,21.41109407]
[1762195275111,12.14,168.97,168.92,0.69]
[1762195275617,12.14,168.96,168.92,0.69]
[1762195275813,20.592,168.99,168.92,0.69]
[1762195275814,23.50241524,168.99,168.92,0.69]
[1762195276014,12.14,168.98,168.92,0.69]
[1762195276229,2.91041524,168.97,168.92,0.69]
[1762195276730,15.05041524,168.98,168.93,5.91961167]
[1762195276925,15.05041524,168.98,168.93,20.71864085]
[1762195277113,15.05041524,168.98,168.94,0.69]
[1762195277709,2.91041524,168.97,168.94,0.69]
[1762195278105,2.91041524,168.97,168.91,14.8006377]
[1762195278106,2.91041524,168.96,168.92,5.9199143]
[1762195278350,15.07041524,168.95,168.92,0.69]
[1762195278519,2.91041524,168.94,168.92,0.69]
[1762195279038,15.07041524,168.95,168.92,6.60992924]
[1762195279222,15.07041524,168.95,168.92,0.69]
[1762195279544,12.16,168.95,168.93,0.69]
[1762195280012,2.91041524,168.98,168.93,0.69]
[1762195280218,27.71245504,169.02,168.93,0.69]
[1762195280219,12.16,168.97,168.93,0.69]
[1762195280415,17.69991702,169.04,168.93,0.69]
[1762195280416,12.16,168.96,168.93,0.69]
[1762195280623,12.16,168.96,168.94,5.91926127]
[1762195280839,2.91041524,168.95,168.92,0.69]
[1762195281130,12.16,168.96,168.92,0.69]
[1762195281131,2.91041524,168.94,168.92,0.69]
[1762195281510,12.16,168.96,168.92,0.69]
[1762195281711,2.91041524,168.95,168.92,0.69]
[1762195282013,2.91041524,168.94,168.92,0.69]
[1762195282711,2.91041524,168.95,168.92,6.60974283]
[1762195282916,2.91041524,168.93,168.92,0.69]
[1762195283128,2.91041524,168.93,168.9,6.71059463]
[1762195283317,2.91041524,168.93,168.91,0.69]
[1762195283718,2.91041524,168.93,168.9,0.1]
[1762195283923,12.16,168.94,168.9,0.79]
[1762195284113,2.91041524,168.92,168.9,0.79]
[1762195284332,2.91041524,168.92,168.9,6.71058241]
[1762195284937,2.91041524,168.92,168.9,0.79]
[1762195285117,12.16,168.91,168.9,0.1]
[1762195285318,15.07041524,168.91,168.9,0.1]
[1762195285635,0.14216157,168.87,168.83,0.1]
[1762195285839,12.16,168.86,168.84,0.69]
[1762195286058,2.91041524,168.88,168.84,0.69]
[1762195286231,12.16,168.88,168.84,0.69]
[1762195286540,5.92209032,168.94,168.85,9.78882769]
[1762195286741,13.84882607,168.93,168.85,9.78882769]
[1762195286914,13.84882607,168.93,168.86,0.69]
[1762195287120,1.86882607,168.91,168.86,6.61201586]
[1762195287426,1.86882607,168.91,168.86,6.61196973]
[1762195287736,11.98,168.93,168.87,0.66]
[1762195287918,20.592,168.94,168.87,0.66]
[1762195287919,1.86882607,168.9,168.87,0.66]
[1762195288117,12.18,168.92,168.87,0.66]
[1762195288118,1.86882607,168.91,168.87,0.66]
[1762195288347,14.04882607,168.92,168.87,0.66]
[1762195288637,12.18,168.92,168.87,0.66]
[1762195289064,14.04882607,168.92,168.88,5.92136428]
[1762195289352,14.04882607,168.92,168.88,6.58136428]
[1762195289535,14.04882607,168.92,168.89,0.66]
[1762195289928,1.86882607,168.91,168.87,5.92163204]
[1762195290123,12.8,168.92,168.88,0.66]
[1762195290323,22.46082607,168.94,168.88,0.66]
[1762195290526,12.18,168.93,168.88,0.66]
[1762195290730,14.04882607,168.93,168.88,0.66]
[1762195291133,14.04882607,168.93,168.89,5.92101367]
[1762195291635,12.18,168.92,168.9,0.66]
[1762195293331,12.18,168.92,168.91,5.92031259]
[1762195293836,12.18,168.92,168.9,6.58054254]
[1762195294232,12.18,168.92,168.91,0.66]
[1762195294449,43.36216157,168.97,168.91,0.66]
[1762195294450,42.74216157,168.97,168.91,0.66]
[1762195294763,20.592,168.97,168.91,0.66]
[1762195294926,12.18,168.96,168.91,0.66]
[1762195295329,12.18,168.96,168.92,5.91996211]
[1762195295561,12.18,168.96,168.91,6.58019478]
[1762195295738,12.18,168.96,168.92,0.66]
[1762195296058,14.04882607,168.96,168.92,0.66]
[1762195296225,12.18,168.96,168.92,0.66]
[1762195296561,17.0430708,168.96,168.92,0.66]
[1762195296975,12.18,168.96,168.92,0.66]
[1762195297343,12.18,168.96,168.93,5.91961167]
[1762195297747,12.18,168.96,168.93,6.57961167]
[1762195298262,5.91792756,168.98,168.94,0.66]
[1762195298263,4.8630708,168.98,168.94,0.66]
[1762195298567,12.22,168.97,168.94,0.66]
[1762195298967,12.22,168.97,168.93,20.71864085]
[1762195299272,12.22,168.96,168.89,20.592]
[1762195299578,12.22,168.96,168.94,0.66]
[1762195300469,0.62,168.95,168.89,21.252]
[1762195300675,4.8630708,168.92,168.89,0.66]
[1762195300883,12.22,168.92,168.89,6.58079952]
[1762195301172,12.22,168.92,168.89,21.38333371]
[1762195301467,12.22,168.92,168.9,6.58045489]
[1762195301876,12.22,168.92,168.91,0.66]
[1762195302059,12.22,168.93,168.91,0.66]
[1762195302259,12.22,168.94,168.91,0.66]
[1762195303460,12.22,168.94,168.92,5.91996211]
[1762195303786,12.22,168.95,168.92,5.91996211]
[1762195303956,42.6,168.98,168.93,0.66]
[1762195304155,16.10641265,168.97,168.93,0.66]
[1762195304363,3.88641265,168.96,168.93,0.66]
[1762195304574,12.22,168.97,168.93,0.66]
[1762195304774,3.88986675,168.96,168.93,0.66]
[1762195304981,12.22,168.97,168.94,5.91926127]
[1762195305164,3.88986677,168.96,168.94,5.91926127]
[1762195305364,3.89053,168.96,168.94,6.57926127]
[1762195306074,3.89053,168.96,168.9,5.9206298]
[1762195306075,8.7536008,168.95,168.9,5.9206298]
[1762195306248,3.89053,168.94,168.9,5.9206298]
[1762195306452,5.52783956,168.99,168.91,0.66]
[1762195306453,12.2,168.96,168.91,0.66]
[1762195306676,3.89347172,168.95,168.91,0.66]
[1762195306868,12.2,168.96,168.92,5.91996211]
[1762195307067,3.8935977,168.95,168.92,5.91996211]
[1762195307376,12.22,168.96,168.93,0.66]
[1762195308492,4.8630708,168.94,168.9,9.78882769]
[1762195308691,4.8630708,168.91,168.87,0.66]
[1762195308864,4.8630708,168.89,168.87,0.66]
[1762195309485,17.0830708,168.91,168.87,6.58167231]
[1762195309665,8.76488234,168.9,168.87,0.66]
[1762195309866,3.90181154,168.89,168.88,0.66]
[1762195311156,8.76488234,168.89,168.84,0.66]
[1762195311362,8.76488234,168.89,168.83,0.1]
[1762195311363,36.71381154,168.88,168.85,0.66]
[1762195311664,8.76488234,168.87,168.83,6.68307757]
[1762195311990,3.90181154,168.86,168.83,6.68307757]
[1762195312290,4.8630708,168.84,168.83,0.1]
[1762195312463,8.76488234,168.84,168.83,0.1]
[1762195313164,15.44981102,168.84,168.83,0.1]
[1762195313787,20.35765058,168.84,168.83,0.1]